fUSD/lending_fUSD_20241227
["ID","MTS","AMOUNT","RATE_DAILY","PERIOD"]
[346871387,1735336238590,-3.45379535,0.00010464,2]
[346871388,1735336238599,-644.16,0.00010464,2]
[346871389,1735336238609,-361.88620465,0.00010464,2]
[346871390,1735336238621,-489.57379535,0.00010464,2]
[346871391,1735336238630,-657.13,0.00010464,2]
[346871392,1735336238640,-500.0,0.00010464,2]
[346871393,1735336238650,-500.0,0.00010464,2]
[346871394,1735336238659,-519.03,0.00010464,2]
[346871395,1735336238669,-562.93549219,0.00010464,2]
[346871396,1735336238679,-500.0,0.00010464,2]
[346871397,1735336238689,-500.0,0.00010464,2]
[346871398,1735336238698,-500.0,0.00010464,2]
[346871399,1735336238708,-500.0,0.00010464,2]
[346871400,1735336238717,-500.0,0.00010464,2]
[346871401,1735336238727,-500.0,0.00010464,2]
[346871402,1735336238736,-500.0,0.00010464,2]
[346871403,1735336238746,-500.0,0.00010464,2]
[346871405,1735336238756,-603.78,0.00010464,2]
[346871407,1735336238765,-901.23,0.00010464,2]
[346871408,1735336238774,-500.0,0.00010464,2]
[346871409,1735336238783,-500.0,0.00010464,2]
[346871410,1735336238793,-500.0,0.00010464,2]
[346871411,1735336238803,-640.42,0.00010464,2]
[346871412,1735336238813,-562.23,0.00010464,2]
[346871413,1735336238823,-500.0,0.00010464,2]
[346871414,1735336238832,-500.0,0.00010464,2]
[346871415,1735336238841,-500.0,0.00010464,2]
[346871416,1735336238851,-500.0,0.00010464,2]
[346871418,1735336238862,-500.0,0.00010464,2]
[346871420,1735336238872,-500.0,0.00010464,2]
[346871422,1735336238881,-500.0,0.00010464,2]
[346871424,1735336238891,-500.0,0.00010464,2]
[346871426,1735336238900,-500.0,0.00010464,2]
[346871428,1735336238910,-500.0,0.00010464,2]
[346871430,1735336238919,-500.0,0.00010464,2]
[346871432,1735336238929,-500.0,0.00010464,2]
[346871434,1735336238938,-153.25288418,0.00010464,2]
[346871436,1735336238965,-346.74711582,0.00010464,2]
[346871437,1735336238974,-500.0,0.00010464,2]
[346871438,1735336238984,-500.0,0.00010464,2]
[346871439,1735336238994,-500.0,0.00010464,2]
[346871440,1735336239004,-814.14,0.00010464,2]
[346871441,1735336239014,-500.0,0.00010464,2]
[346871442,1735336239023,-499.80980142,0.00010464,2]
[346871443,1735336239033,-500.0,0.00010464,2]
[346871444,1735336239043,-500.0,0.00010464,2]
[346871445,1735336239052,-268.96823024,0.00010464,2]
[346871446,1735336239064,-231.03176976,0.00010464,2]
[346871447,1735336239074,-106.79839889,0.00010464,2]
[346871448,1735336239091,-623.38160111,0.00010464,2]
[346871449,1735336239101,-500.0,0.00010464,2]
[346871450,1735336239112,-500.0,0.00010464,2]
[346871452,1735336239121,-500.0,0.00010464,2]
[346871454,1735336239131,-500.0,0.00010464,2]
[346871456,1735336239146,-960.67,0.00010464,2]
[346871458,1735336239156,-688.13,0.00010464,2]
[346871460,1735336239166,-500.0,0.00010464,2]
[346871462,1735336239175,-625.0,0.00010464,2]
[346871464,1735336239186,-500.0,0.00010464,2]
[346871466,1735336239195,-500.0,0.00010464,2]
[346871468,1735336239206,-500.0,0.00010464,2]
[346871470,1735336239217,-500.0,0.00010464,2]
[346871472,1735336239227,-500.0,0.00010464,2]
[346871474,1735336239237,-500.0,0.00010464,2]
[346871476,1735336239247,-500.0,0.00010464,2]
[346871477,1735336239257,-500.0,0.00010464,2]
[346871480,1735336239267,-500.0,0.00010464,2]
[346871481,1735336239277,-500.0,0.00010464,2]
[346871484,1735336239286,-500.0,0.00010464,2]
[346871486,1735336239296,-537.8,0.00010464,2]
[346871488,1735336239306,-500.0,0.00010464,2]
[346871490,1735336239316,-809.76,0.00010464,2]
[346871491,1735336239325,-504.11037466,0.00010464,2]
[346871493,1735336239335,-500.0,0.00010464,2]
[346871496,1735336239345,-500.0,0.00010464,2]
[346871497,1735336239355,-500.0,0.00010464,2]
[346871499,1735336239367,-500.0,0.00010464,2]
[346871502,1735336239382,-500.0,0.00010464,2]
[346871504,1735336239391,-500.0,0.00010464,2]
[346871506,1735336239401,-500.0,0.00010464,2]
[346871507,1735336239411,-434.22702423,0.00010464,2]
[346871509,1735336239423,-92.42297577,0.00010464,2]
[346871511,1735336239432,-500.0,0.00010464,2]
[346871513,1735336239442,-500.0,0.00010464,2]
[346871515,1735336239452,-572.12,0.00010464,2]
[346871517,1735336239462,-500.0,0.00010464,2]
[346871519,1735336239472,-500.0,0.00010464,2]
[346871522,1735336239483,-385.30862423,0.00010464,2]
[346871524,1735336239495,-120.03845883,0.00010464,2]
[346871526,1735336239504,-223.62173223,0.00010464,2]
[346871528,1735336239514,-152.47930859,0.00010464,2]
[346871530,1735336239523,-852.62,0.00010464,2]
[346871532,1735336239532,-9.74391662,0.00010464,2]
[346871534,1735336239544,-490.25608338,0.00010464,2]
[346871536,1735336239553,-500.0,0.00010464,2]
[346871538,1735336239563,-500.0,0.00010464,2]
[346871540,1735336239572,-669.16,0.00010464,2]
[346871542,1735336239581,-500.0,0.00010464,2]
[346871544,1735336239591,-500.0,0.00010464,2]
[346871545,1735336239600,-500.0,0.00010464,2]
[346871547,1735336239610,-1249.53,0.00010464,2]
[346871549,1735336239620,-500.0,0.00010464,2]
[346871551,1735336239629,-500.0,0.00010464,2]
[346871553,1735336239639,-500.0,0.00010464,2]
[346871555,1735336239649,-500.0,0.00010464,2]
[346871557,1735336239658,-1010.19,0.00010464,2]
[346871559,1735336239667,-500.0,0.00010464,2]
[346871561,1735336239676,-899.21,0.00010464,2]
[346871563,1735336239686,-500.0,0.00010464,2]
[346871566,1735336239695,-500.0,0.00010464,2]
[346871567,1735336239705,-955.53,0.00010464,2]
[346871570,1735336239715,-500.0,0.00010464,2]
[346871571,1735336239724,-263.57767669,0.00010464,2]
[346871574,1735336239736,-236.42232331,0.00010464,2]
[346871576,1735336239745,-675.8,0.00010464,2]
[346871578,1735336239754,-640.96318355,0.00010464,2]
[346871580,1735336239762,-500.0,0.00010464,2]
[346871582,1735336239771,-500.0,0.00010464,2]
[346871583,1735336239780,-1659.52,0.00010464,2]
[346871585,1735336239789,-159.44256739,0.00010464,2]
[346871588,1735336239800,-340.55743261,0.00010464,2]
[346871590,1735336239810,-500.0,0.00010464,2]
[346871592,1735336239819,-500.0,0.00010464,2]
[346871594,1735336239828,-2114.0,0.00010464,2]
[346871596,1735336239838,-261.23240739,0.00010464,2]
[346871601,1735336239883,-304.72759261,0.00010464,2]
[346871603,1735336239892,-10774.56,0.00010464,2]
[346871605,1735336239901,-500.0,0.00010464,2]
[346871607,1735336239911,-500.0,0.00010464,2]
[346871609,1735336239920,-500.0,0.00010464,2]
[346871611,1735336239929,-500.0,0.00010464,2]
[346871613,1735336239938,-500.0,0.00010464,2]
[346871615,1735336239948,-500.0,0.00010464,2]
[346871617,1735336239957,-602.1,0.00010464,2]
[346871619,1735336239967,-500.0,0.00010464,2]
[346871621,1735336239976,-592.67,0.00010464,2]
[346871623,1735336239985,-500.0,0.00010464,2]
[346871625,1735336239995,-500.0,0.00010464,2]
[346871627,1735336240004,-500.0,0.00010464,2]
[346871629,1735336240013,-1083.23,0.00010464,2]
[346871631,1735336240023,-500.0,0.00010464,2]
[346871633,1735336240032,-1880.76,0.00010464,2]
[346871635,1735336240041,-541.17,0.00010464,2]
[346871637,1735336240050,-1044.48,0.00010464,2]
[346871639,1735336240059,-500.0,0.00010464,2]
[346871641,1735336240067,-500.0,0.00010464,2]
[346871643,1735336240076,-518.59,0.00010464,2]
[346871645,1735336240085,-5794.82,0.00010464,2]
[346871647,1735336240094,-500.0,0.00010464,2]
[346871649,1735336240103,-500.0,0.00010464,2]
[346871651,1735336240112,-500.0,0.00010464,2]
[346871653,1735336240121,-1317.36,0.00010464,2]
[346871655,1735336240130,-922.22,0.00010464,2]
[346871657,1735336240145,-1665.0,0.00010464,2]
[346871661,1735336240154,-500.0,0.00010464,2]
[346871663,1735336240163,-868.91,0.00010464,2]
[346871665,1735336240172,-564.22,0.00010464,2]
[346871667,1735336240182,-2374.65,0.00010464,2]
[346871669,1735336240191,-511.85,0.00010464,2]
[346871671,1735336240201,-1805.44,0.00010464,2]
[346871673,1735336240210,-619.78,0.00010464,2]
[346871675,1735336240219,-500.0,0.00010464,2]
[346871677,1735336240229,-500.0,0.00010464,2]
[346871679,1735336240239,-1146.64,0.00010464,2]
[346871681,1735336240248,-500.0,0.00010464,2]
[346871683,1735336240258,-524.2,0.00010464,2]
[346871685,1735336240267,-500.0,0.00010464,2]
[346871687,1735336240276,-500.0,0.00010464,2]
[346871689,1735336240285,-500.0,0.00010464,2]
[346871691,1735336240294,-2159.25,0.00010464,2]
[346871693,1735336240303,-506.33,0.00010464,2]
[346871695,1735336240314,-4157.24,0.00010464,2]
[346871697,1735336240323,-2208.58,0.00010464,2]
[346871699,1735336240332,-549.19,0.00010464,2]
[346871701,1735336240342,-500.0,0.00010464,2]
[346871703,1735336240351,-500.0,0.00010464,2]
[346871705,1735336240360,-500.0,0.00010464,2]
[346871707,1735336240369,-500.0,0.00010464,2]
[346871709,1735336240378,-818.86,0.00010464,2]
[346871710,1735336240388,-680.75,0.00010464,2]
[346871712,1735336240397,-987.63,0.00010464,2]
[346871715,1735336240406,-500.0,0.00010464,2]
[346871716,1735336240415,-686.54,0.00010464,2]
[346871718,1735336240424,-500.0,0.00010464,2]
[346871720,1735336240433,-1280.58,0.00010464,2]
[346871722,1735336240442,-510.42,0.00010464,2]
[346871724,1735336240451,-500.0,0.00010464,2]
[346871726,1735336240460,-500.0,0.00010464,2]
[346871728,1735336240469,-500.0,0.00010464,2]
[346871730,1735336240478,-715.73,0.00010464,2]
[346871732,1735336240488,-500.0,0.00010464,2]
[346871734,1735336240497,-2173.54,0.00010464,2]
[346871736,1735336240506,-675.24,0.00010464,2]
[346871738,1735336240515,-500.0,0.00010464,2]
[346871740,1735336240524,-518.2,0.00010464,2]
[346871742,1735336240533,-715.3,0.00010464,2]
[346871744,1735336240542,-1718.84,0.00010464,2]
[346871746,1735336240551,-1645.79,0.00010464,2]
[346871748,1735336240560,-500.0,0.00010464,2]
[346871750,1735336240569,-919.56,0.00010464,2]
[346871752,1735336240579,-500.0,0.00010464,2]
[346871754,1735336240587,-500.0,0.00010464,2]
[346871756,1735336240596,-249.14,0.00010464,2]
[346871758,1735336240605,-252.87,0.00010464,2]
[346871760,1735336240615,-253.66,0.00010464,2]
[346871762,1735336240624,-250.0,0.00010464,2]
[346871765,1735336240634,-247.73,0.00010464,2]
[346871767,1735336240644,-253.28,0.00010464,2]
[346871769,1735336240653,-252.48,0.00010464,2]
[346871771,1735336240663,-252.8,0.00010464,2]
[346871773,1735336240672,-698.98,0.00010465,2]
[346871775,1735336240681,-1447.35,0.00010465,2]
[346871777,1735336240691,-500.0,0.00010465,2]
[346871779,1735336240700,-1135.24,0.00010465,2]
[346871781,1735336240709,-1446.45,0.00010465,2]
[346871783,1735336240718,-1586.47,0.00010465,2]
[346871785,1735336240728,-1348.14,0.00010465,2]
[346871787,1735336240737,-2379.61,0.00010465,2]
[346871789,1735336240747,-1539.31,0.00010465,2]
[346871791,1735336240757,-6514.22,0.00010465,2]
[346871793,1735336240767,-4583.19,0.00010465,2]
[346871795,1735336240776,-500.0,0.00010465,2]
[346871797,1735336240786,-601.41,0.00010465,2]
[346871799,1735336240796,-500.0,0.00010465,2]
[346871801,1735336240806,-500.0,0.00010465,2]
[346871803,1735336240816,-500.0,0.00010465,2]
[346871805,1735336240826,-500.0,0.00010465,2]
[346871807,1735336240835,-588.01,0.00010465,2]
[346871809,1735336240844,-521.44,0.00010465,2]
[346871811,1735336240854,-500.0,0.00010465,2]
[346871813,1735336240864,-500.0,0.00010465,2]
[346871815,1735336240874,-584.63,0.00010465,2]
[346871817,1735336240884,-1892.34,0.00010465,2]
[346871819,1735336240893,-500.0,0.00010465,2]
[346871821,1735336240903,-500.0,0.00010465,2]
[346871823,1735336240913,-610.67,0.00010465,2]
[346871825,1735336240922,-500.0,0.00010465,2]
[346871827,1735336240931,-500.0,0.00010465,2]
[346871829,1735336240941,-500.0,0.00010465,2]
[346871831,1735336240950,-500.0,0.00010465,2]
[346871833,1735336240959,-500.0,0.00010465,2]
[346871835,1735336240968,-507.02,0.00010465,2]
[346871838,1735336240981,-500.0,0.00010465,2]
[346871840,1735336240993,-500.0,0.00010465,2]
[346871842,1735336241006,-9987.57,0.00010465,2]
[346871845,1735336241019,-500.0,0.00010465,2]
[346871847,1735336241030,-500.0,0.00010465,2]
[346871849,1735336241039,-633.36,0.00010465,2]
[346871851,1735336241050,-500.0,0.00010465,2]
[346871853,1735336241062,-500.0,0.00010465,2]
[346871856,1735336241074,-500.0,0.00010465,2]
[346871858,1735336241085,-500.0,0.00010465,2]
[346871860,1735336241097,-500.0,0.00010465,2]
[346871863,1735336241109,-694.31,0.00010465,2]
[346871865,1735336241122,-500.0,0.00010465,2]
[346871867,1735336241134,-500.0,0.00010465,2]
[346871869,1735336241147,-500.0,0.00010465,2]
[346871872,1735336241159,-681.38,0.00010465,2]
[346871874,1735336241170,-500.0,0.00010465,2]
[346871876,1735336241180,-500.0,0.00010465,2]
[346871878,1735336241191,-500.0,0.00010465,2]
[346871880,1735336241203,-500.0,0.00010465,2]
[346871883,1735336241215,-500.0,0.00010465,2]
[346871885,1735336241227,-500.0,0.00010465,2]
[346871887,1735336241239,-500.0,0.00010465,2]
[346871889,1735336241250,-500.0,0.00010465,2]
[346871892,1735336241262,-500.0,0.00010465,2]
[346871894,1735336241275,-286.14213478,0.00010465,2]
[346871896,1735336241287,-765.4,0.00010465,2]
[346871898,1735336241299,-500.0,0.00010465,2]
[346871901,1735336241310,-803.37,0.00010465,2]
[346871903,1735336241322,-500.0,0.00010465,2]
[346871905,1735336241332,-500.0,0.00010465,2]
[346871907,1735336241343,-502.16,0.00010465,2]
[346871910,1735336241356,-500.0,0.00010465,2]
[346871912,1735336241368,-500.0,0.00010465,2]
[346871914,1735336241380,-500.0,0.00010465,2]
[346871917,1735336241391,-500.0,0.00010465,2]
[346871919,1735336241403,-500.0,0.00010465,2]
[346871921,1735336241415,-500.0,0.00010465,2]
[346871923,1735336241425,-732.69,0.00010465,2]
[346871925,1735336241436,-500.0,0.00010465,2]
[346871928,1735336241448,-500.0,0.00010465,2]
[346871930,1735336241460,-500.0,0.00010465,2]
[346871932,1735336241471,-500.0,0.00010465,2]
[346871934,1735336241482,-659.83,0.00010465,2]
[346871936,1735336241493,-500.0,0.00010465,2]
[346871939,1735336241505,-1366.87,0.00010465,2]
[346871941,1735336241515,-500.0,0.00010465,2]
[346871943,1735336241525,-595.6,0.00010465,2]
[346871945,1735336241535,-500.0,0.00010465,2]
[346871947,1735336241545,-500.0,0.00010465,2]
[346871949,1735336241557,-500.0,0.00010465,2]
[346871952,1735336241571,-500.0,0.00010465,2]
[346871954,1735336241583,-609.19,0.00010465,2]
[346871956,1735336241593,-1051.26,0.00010465,2]
[346871958,1735336241603,-500.0,0.00010465,2]
[346871960,1735336241612,-805.68,0.00010465,2]
[346871962,1735336241622,-500.0,0.00010465,2]
[346871964,1735336241632,-500.0,0.00010465,2]
[346871967,1735336241642,-557.4,0.00010465,2]
[346871969,1735336241654,-502.54713006,0.00010465,2]
[346871971,1735336241666,-791.28,0.00010465,2]
[346871973,1735336241677,-501.23492446,0.00010465,2]
[346871976,1735336241687,-502.30394919,0.00010465,2]
[346871978,1735336241697,-500.0,0.00010465,2]
[346871980,1735336241707,-500.0,0.00010465,2]
[346871982,1735336241717,-1126.95,0.00010465,2]
[346871984,1735336241728,-500.0,0.00010465,2]
[346871986,1735336241739,-372.6734101,0.00010465,2]
[346871988,1735336241749,-731.1,0.00010465,2]
[346871991,1735336241760,-544.40529518,0.00010465,2]
[346871993,1735336241771,-500.0,0.00010465,2]
[346871995,1735336241781,-500.0,0.00010465,2]
[346871997,1735336241792,-752.15,0.00010465,2]
[346871999,1735336241803,-500.0,0.00010465,2]
[346872001,1735336241813,-500.0,0.00010465,2]
[346872004,1735336241827,-1550.85,0.00010465,2]
[346872006,1735336241838,-500.0,0.00010465,2]
[346872008,1735336241849,-7603.11,0.00010465,2]
[346872010,1735336241859,-601.57,0.00010465,2]
[346872012,1735336241870,-690.9,0.00010465,2]
[346872014,1735336241881,-155.940262,0.00010465,2]
[346872016,1735336241891,-500.0,0.00010465,2]
[346872019,1735336241902,-153.936029,0.00010465,2]
[346872021,1735336241913,-927.58,0.00010465,2]
[346872023,1735336241924,-799.923696,0.00010465,2]
[346872025,1735336241934,-1058.16,0.00010465,2]
[346872026,1735336241945,-638.13,0.00010465,2]
[346872027,1735336241955,-693.37187,0.00010465,2]
[346872028,1735336241967,-226.86766374,0.00010465,2]
[346872029,1735336241978,-500.0,0.00010465,2]
[346872030,1735336241988,-1010.75,0.00010465,2]
[346872031,1735336241999,-500.0,0.00010465,2]
[346872032,1735336242009,-3832.11,0.00010465,2]
[346872033,1735336242020,-186.97972052,0.00010465,2]
[346872035,1735336242032,-500.0,0.00010465,2]
[346872037,1735336242043,-232.58737315,0.00010465,2]
[346872039,1735336242054,-362.25482494,0.00010465,2]
[346872041,1735336242065,-559.24,0.00010465,2]
[346872043,1735336242075,-1002.16,0.00010465,2]
[346872045,1735336242086,-1522.12,0.00010465,2]
[346872046,1735336242096,-759.49,0.00010465,2]
[346872047,1735336242107,-1655.0,0.00010465,2]
[346872048,1735336242118,-592.24,0.00010465,2]
[346872049,1735336242129,-660.86,0.00010465,2]
[346872050,1735336242141,-1674.62,0.00010465,2]
[346872051,1735336242155,-500.0,0.00010465,2]
[346872052,1735336242167,-500.0,0.00010465,2]
[346872053,1735336242178,-500.0,0.00010465,2]
[346872054,1735336242189,-599.88,0.00010465,2]
[346872055,1735336242200,-3239.99,0.00010465,2]
[346872056,1735336242211,-3517.2,0.00010465,2]
[346872057,1735336242222,-500.0,0.00010465,2]
[346872058,1735336242234,-500.0,0.00010465,2]
[346872059,1735336242244,-500.0,0.00010465,2]
[346872060,1735336242255,-935.57,0.00010465,2]
[346872061,1735336242273,-1678.05,0.00010465,2]
[346872062,1735336242285,-3183.31,0.00010465,2]
[346872063,1735336242297,-302.91851434,0.00010465,2]
[346872064,1735336242309,-854.24,0.00010465,2]
[346872065,1735336242322,-5065.71,0.00010465,2]
[346872066,1735336242335,-2239.0,0.00010465,2]
[346872067,1735336242347,-525.3,0.00010465,2]
[346872068,1735336242359,-957.86,0.00010465,2]
[346872069,1735336242371,-818.32,0.00010465,2]
[346872070,1735336242382,-1701.48,0.00010465,2]
[346872071,1735336242394,-615.44,0.00010465,2]
[346872072,1735336242406,-1122.53,0.00010465,2]
[346872073,1735336242417,-855.23,0.00010465,2]
[346872074,1735336242428,-4580.88,0.00010465,2]
[346872075,1735336242440,-1041.51,0.00010465,2]
[346872076,1735336242451,-1925.05,0.00010465,2]
[346872077,1735336242463,-2926.65,0.00010465,2]
[346872078,1735336242477,-530.09,0.00010465,2]
[346872079,1735336242489,-1652.43,0.00010465,2]
[346872080,1735336242500,-506.96,0.00010465,2]
[346872081,1735336242512,-606.93,0.00010465,2]
[346872082,1735336242523,-1414.13,0.00010465,2]
[346872083,1735336242535,-2362.14,0.00010465,2]
[346872084,1735336242546,-999.73,0.00010465,2]
[346872085,1735336242557,-821.05,0.00010465,2]
[346872086,1735336242569,-7044.73,0.00010465,2]
[346872087,1735336242580,-500.0,0.00010465,2]
[346872088,1735336242592,-686.27,0.00010465,2]
[346872089,1735336242603,-646.97,0.00010465,2]
[346872090,1735336242614,-500.0,0.00010465,2]
[346872091,1735336242627,-2139.42,0.00010465,2]
[346872092,1735336242639,-1232.83,0.00010465,2]
[346872093,1735336242650,-900.32,0.00010465,2]
[346872094,1735336242662,-619.54,0.00010465,2]
[346872095,1735336242673,-2506.77,0.00010465,2]
[346872096,1735336242683,-500.0,0.00010465,2]
[346872097,1735336242695,-556.85,0.00010465,2]
[346872098,1735336242706,-1405.35,0.00010465,2]
[346872099,1735336242716,-500.0,0.00010466,2]
[346872100,1735336242728,-502.27714388,0.00010466,2]
[346872101,1735336242739,-500.0,0.00010466,2]
[346872102,1735336242750,-1299.63,0.00010466,2]
[346872103,1735336242761,-569.4,0.00010466,2]
[346872104,1735336242773,-500.0,0.00010466,2]
[346872105,1735336242784,-906.66,0.00010466,2]
[346872106,1735336242795,-500.0,0.00010466,2]
[346872107,1735336242806,-1024.73,0.00010466,2]
[346872108,1735336242817,-598.13,0.00010466,2]
[346872109,1735336242828,-737.59,0.00010466,2]
[346872110,1735336242839,-985.21,0.00010466,2]
[346872111,1735336242851,-724.58,0.00010466,2]
[346872112,1735336242862,-567.32,0.00010466,2]
[346872113,1735336242874,-726.25,0.00010466,2]
[346872114,1735336242886,-615.69,0.00010466,2]
[346872115,1735336242897,-1708.12,0.00010466,2]
[346872116,1735336242908,-1184.29,0.00010466,2]
[346872117,1735336242919,-548.56,0.00010466,2]
[346872118,1735336242931,-1426.63,0.00010466,2]
[346872119,1735336242942,-553.77,0.00010466,2]
[346872120,1735336242953,-780.99,0.00010466,2]
[346872121,1735336242964,-776.14,0.00010466,2]
[346872122,1735336242974,-500.0,0.00010466,2]
[346872123,1735336242985,-1224.21,0.00010466,2]
[346872124,1735336242996,-500.0,0.00010466,2]
[346872125,1735336243007,-520.15,0.00010466,2]
[346872126,1735336243018,-716.45,0.00010466,2]
[346872127,1735336243029,-16046.69,0.00010467,2]
[346872128,1735336243040,-620.78,0.00010467,2]
[346872129,1735336243050,-2041.8,0.00010467,2]
[346872130,1735336243061,-1627.58,0.00010467,2]
[346872131,1735336243072,-1382.57,0.00010467,2]
[346872132,1735336243082,-3200.02,0.00010467,2]
[346872133,1735336243092,-510.79,0.00010467,2]
[346872134,1735336243103,-1065.28,0.00010467,2]
[346872135,1735336243113,-1200.97,0.00010467,2]
[346872136,1735336243126,-868.67,0.00010467,2]
[346872137,1735336243139,-3048.93,0.00010467,2]
[346872138,1735336243150,-2042.82,0.00010467,2]
[346872139,1735336243161,-1087.71,0.00010475,2]
[346872141,1735336243171,-163.0,0.00010575,2]
[346872142,1735336243183,-300.0,0.000107,3]
[346872143,1735336243194,-793.79,0.00010727,2]
[346872144,1735336243204,-500.0,0.00010738,2]
[346872145,1735336243215,-513.86,0.00010738,2]
[346872146,1735336243225,-270.27190698,0.00010738,2]
[346872147,1735336243236,-500.0,0.00010738,2]
[346872148,1735336243247,-293.75091074,0.00010738,2]
[346872149,1735336243262,-500.0,0.00010738,2]
[346872151,1735336243274,-500.0,0.00010738,2]
[346872152,1735336243286,-500.0,0.00010738,2]
[346872153,1735336243299,-276.55582255,0.00010738,2]
[346872154,1735336243309,-500.0,0.00010738,2]
[346872155,1735336243320,-523.19,0.00010738,2]
[346872157,1735336243331,-500.0,0.00010738,2]
[346872160,1735336243341,-517.22,0.00010738,2]
[346872162,1735336243352,-500.0,0.00010738,2]
[346872163,1735336243363,-500.0,0.00010738,2]
[346872164,1735336243374,-500.0,0.00010738,2]
[346872165,1735336243385,-500.0,0.00010738,2]
[346872167,1735336243397,-500.0,0.00010738,2]
[346872169,1735336243408,-500.0,0.00010738,2]
[346872170,1735336243418,-500.0,0.00010738,2]
[346872171,1735336243428,-641.74,0.00010738,2]
[346872172,1735336243438,-524.58,0.00010738,2]
[346872173,1735336243448,-500.0,0.00010738,2]
[346872174,1735336243458,-500.0,0.00010738,2]
[346872175,1735336243469,-500.0,0.00010738,2]
[346872176,1735336243480,-777.86,0.00010738,2]
[346872177,1735336243491,-500.0,0.00010738,2]
[346872178,1735336243501,-656.88,0.00010738,2]
[346872179,1735336243511,-500.0,0.00010738,2]
[346872180,1735336243521,-500.0,0.00010738,2]
[346872181,1735336243531,-500.0,0.00010738,2]
[346872182,1735336243542,-500.0,0.00010738,2]
[346872183,1735336243552,-500.0,0.00010738,2]
[346872184,1735336243562,-500.0,0.00010738,2]
[346872185,1735336243573,-500.0,0.00010738,2]
[346872186,1735336243583,-500.0,0.00010738,2]
[346872187,1735336243594,-500.0,0.00010738,2]
[346872188,1735336243604,-500.0,0.00010738,2]
[346872189,1735336243614,-500.0,0.00010738,2]
[346872190,1735336243626,-500.0,0.00010738,2]
[346872191,1735336243637,-500.0,0.00010738,2]
[346872192,1735336243647,-500.0,0.00010738,2]
[346872193,1735336243658,-500.0,0.00010738,2]
[346872194,1735336243669,-628.28,0.00010738,2]
[346872195,1735336243680,-500.0,0.00010738,2]
[346872196,1735336243691,-500.0,0.00010738,2]
[346872197,1735336243702,-500.0,0.00010738,2]
[346872198,1735336243712,-500.0,0.00010738,2]
[346872199,1735336243723,-500.0,0.00010738,2]
[346872200,1735336243733,-643.04,0.00010738,2]
[346872201,1735336243744,-500.0,0.00010738,2]
[346872202,1735336243754,-500.0,0.00010738,2]
[346872203,1735336243765,-500.0,0.00010738,2]
[346872204,1735336243776,-500.0,0.00010738,2]
[346872205,1735336243786,-739.17,0.00010738,2]
[346872206,1735336243797,-504.48,0.00010738,2]
[346872207,1735336243807,-500.0,0.00010738,2]
[346872208,1735336243817,-500.0,0.00010738,2]
[346872209,1735336243828,-500.0,0.00010738,2]
[346872210,1735336243838,-647.03,0.00010738,2]
[346872211,1735336243849,-1024.8,0.00010738,2]